[Event "African Online-ch Women 2021"]
[Site "Online"]
[Date "2021.02.01"]
[Round "5.15"]
[White "Castro, Neusa Aridas De"]
[Black "Leboela, Maboloko"]
[Result "1/2-1/2"]
[ECO "B30"]
[WhiteElo "1512"]
[BlackElo "1296"]
[Annotator "NA RC"]
[PlyCount "124"]
[EventDate "2021.02.01"]
[EventType "swiss"]
[EventCountry "NET"]
[SourceTitle "playchess.com"]
[Source "ChessBase"]
[SourceQuality "1"]
[TimeControl "1500+10"]

1. e4 {[%emt 0:00:00]} c5 {[%emt 0:00:06]} 2. Nf3 {[%emt 0:00:08]} Nc6 {[%emt 0:00:03]} 3. Bc4 {[%emt 0:00:06]} e6 {[%emt 0:00:30]} 4. Nc3 {[%emt 0:00:05]} Nf6 {[%emt 0:00:05]} 5. d3 {[%emt 0:00:13]} Be7 {[%emt 0:00:06]} 6. O-O {[%emt 0:00:25]} O-O {[%emt 0:00:04]} 7. Be3 {[%emt 0:00:10]} a6 {[%emt 0:00:07]} 8. a3 {[%emt 0:00:04]} b5 {[%emt 0:00:04]} 9. Ba2 {[%emt 0:00:04]} Bb7 {[%emt 0:00:02]} 10. Ne2 {[%emt 0:00:08]} Rc8 {[%emt 0:00:07]} 11. Rc1 {[%emt 0:00:25]} e5 {[%emt 0:00:11]} 12. Ng3 {[%emt 0:00:06]} Ng4 {[%emt 0:00:06]} 13. Bd2 {[%emt 0:00:15]} Bh4 {[%emt 0:00:09]} 14. Nxh4 {[%emt 0:00:08]} Qxh4 {[%emt 0:00:13]} 15. h3 {[%emt 0:00:15]} Nf6 {[%emt 0:00:11]} 16. Nf5 {[%emt 0:00:12]} Qh5 {[%emt 0:00:11]} 17. Qxh5 {[%emt 0:01:38]} Nxh5 {[%emt 0:00:07]} 18. Nd6 {[%emt 0:01:27]} Rb8 {[%emt 0:00:09]} 19. f4 {[%emt 0:00:24]} exf4 {[%emt 0:01:05]} 20. Bxf4 {[%emt 0:00:07]} Nxf4 {[%emt 0:00:10]} 21. Rxf4 {[%emt 0:00:06]} Ne5 {[%emt 0:00:12]} 22. Rf5 {[%emt 0:00:35]} Ng6 {[%emt 0:01:19]} 23. Nxf7 {[%emt 0:01:09]} c4 {[%emt 0:01:53]} 24. Rcf1 {[%emt 0:00:33]} h6 {[%emt 0:01:10]} 25. Nd6 {[%emt 0:02:01]} Rxf5 {[%emt 0:00:43]} 26. exf5 {[%emt 0:00:22]} Ne5 {[%emt 0:00:36]} 27. dxc4 {[%emt 0:00:21]} bxc4 {[%emt 0:00:16]} 28. Nxc4 {[%emt 0:00:06]} Nxc4 {[%emt 0:00:05]} 29. Bxc4+ {[%emt 0:00:04]} d5 {[%emt 0:00:02]} 30. Bb3 {[%emt 0:00:05]} Bc6 {[%emt 0:00:06]} 31. f6 {[%emt 0:00:09]} g5 {[%emt 0:00:13]} 32. Rf5 {[%emt 0:00:05]} Rd8 {[%emt 0:00:22]} 33. Ba2 {[%emt 0:00:05]} Kf7 {[%emt 0:00:05]} 34. c4 {[%emt 0:00:05]} d4 {[%emt 0:01:01]} 35. c5+ {[%emt 0:00:15]} Kf8 {[%emt 0:00:08]} 36. Bc4 {[%emt 0:00:12]} d3 {[%emt 0:00:11]} 37. Rf1 {[%emt 0:00:09]} d2 {[%emt 0:00:02]} 38. Rd1 {[%emt 0:00:05]} Be4 {[%emt 0:00:21]} 39. Bb3 {[%emt 0:00:03]} Bc6 {[%emt 0:00:27]} 40. Kf2 {[%emt 0:00:05]} a5 {[%emt 0:00:08]} 41. a4 {[%emt 0:00:05]} Rd3 {[%emt 0:00:24]} 42. Bc2 {[%emt 0:00:04]} Rd4 {[%emt 0:00:13]} 43. Ke3 {[%emt 0:00:06]} Rf4 {[%emt 0:00:17]} 44. Rxd2 {[%emt 0:00:13]} Rxf6 {[%emt 0:00:03]} 45. Rf2 {[%emt 0:00:10]} Ke7 {[%emt 0:00:16]} 46. Rxf6 {[%emt 0:00:27]} Kxf6 {[%emt 0:00:03]} 47. Be4 {[%emt 0:00:06]} Bxa4 {[%emt 0:00:06]} 48. Kd4 {[%emt 0:00:09]} Ke6 {[%emt 0:00:10]} 49. Bd5+ {[%emt 0:00:08]} Kd7 {[%emt 0:00:04]} 50. Ke5 {[%emt 0:00:05]} Ke7 {[%emt 0:00:19]} 51. c6 {[%emt 0:00:08]} Bc2 {[%emt 0:00:12]} 52. b3 {[%emt 0:00:15]} h5 {[%emt 0:00:06]} 53. g3 {[%emt 0:00:06]} g4 {[%emt 0:00:19]} 54. hxg4 {[%emt 0:00:06]} hxg4 {[%emt 0:00:03]} 55. Kf4 {[%emt 0:00:03]} Bd1 {[%emt 0:00:04]} 56. Ke5 {[%emt 0:00:09]} a4 {[%emt 0:00:11]} 57. bxa4 {[%emt 0:00:16]} Bxa4 {[%emt 0:00:04]} 58. Kf5 {[%emt 0:00:02]} Bd1 {[%emt 0:00:02]} 59. Bh1 {[%emt 0:00:05]} Kd6 {[%emt 0:00:06]} 60. Kf6 {[%emt 0:00:04]} Bf3 {[%emt 0:00:05]} 61. Kg5 {[%emt 0:01:14]} Kxc6 {[%emt 0:00:10]} 62. Kf4 {[%emt 0:00:02]} Bxh1 {[%emt 0:00:14]} 1/2-1/2

[Event "African Online-ch Women 2021"]
[Site "Online"]
[Date "2021.02.01"]
[Round "6.2"]
[White "Charinda, Kudzanayi"]
[Black "McPherson, Naleli"]
[Result "1-0"]
[ECO "B50"]
[WhiteElo "1710"]
[BlackElo "1303"]
[Annotator "NA RC"]
[PlyCount "152"]
[EventDate "2021.02.01"]
[EventType "swiss"]
[EventCountry "NET"]
[SourceTitle "playchess.com"]
[Source "ChessBase"]
[SourceQuality "1"]
[TimeControl "1500+10"]

1. e4 {[%emt 0:00:00]} e5 {[%emt 0:00:17]} 2. Nf3 {[%emt 0:00:06]} d6 {[%emt 0:00:11]} 3. Nc3 {[%emt 0:00:15]} c5 {[%emt 0:00:25]} 4. Bc4 {[%emt 0:01:05]} Be7 {[%emt 0:00:15]} 5. O-O {[%emt 0:00:25]} Nf6 {[%emt 0:00:14]} 6. Re1 {[%emt 0:00:17]} O-O {[%emt 0:00:20]} 7. Nd5 {[%emt 0:00:35]} Nxd5 {[%emt 0:00:30]} 8. Bxd5 {[%emt 0:00:04]} Nc6 {[%emt 0:00:20]} 9. c3 {[%emt 0:00:15]} Bg4 {[%emt 0:00:37]} 10. h3 {[%emt 0:00:06]} Bh5 {[%emt 0:00:25]} 11. Bc4 {[%emt 0:00:39]} Kh8 {[%emt 0:00:35]} 12. Be2 {[%emt 0:00:07]} Bg6 {[%emt 0:01:00]} 13. d3 {[%emt 0:00:09]} a6 {[%emt 0:00:42]} 14. Be3 {[%emt 0:00:47]} f5 {[%emt 0:00:46]} 15. exf5 {[%emt 0:00:30]} Bxf5 {[%emt 0:00:23]} 16. d4 {[%emt 0:01:31]} cxd4 {[%emt 0:00:48]} 17. cxd4 {[%emt 0:00:09]} e4 {[%emt 0:00:30]} 18. Nh2 {[%emt 0:00:10]} d5 {[%emt 0:00:18]} 19. a3 {[%emt 0:02:42]} Bf6 {[%emt 0:00:54]} 20. Qd2 {[%emt 0:00:44]} Qb6 {[%emt 0:00:42]} 21. Rad1 {[%emt 0:01:21]} Rac8 {[%emt 0:00:38]} 22. b4 {[%emt 0:00:16]} Qd8 {[%emt 0:01:40]} 23. Ng4 {[%emt 0:01:12]} Bxg4 {[%emt 0:00:49]} 24. Bxg4 {[%emt 0:00:05]} Rc7 {[%emt 0:00:21]} 25. Rc1 {[%emt 0:02:14]} Re7 {[%emt 0:01:14]} 26. a4 {[%emt 0:00:25]} Qb6 {[%emt 0:00:41]} 27. Rc5 {[%emt 0:03:35]} Qd8 {[%emt 0:02:03]} 28. b5 {[%emt 0:00:17]} axb5 {[%emt 0:01:24]} 29. axb5 {[%emt 0:00:05]} Na5 {[%emt 0:00:51]} 30. Rc8 {[%emt 0:00:17]} Qxc8 {[%emt 0:00:32]} 31. Bxc8 {[%emt 0:00:06]} Nc4 {[%emt 0:00:24]} 32. Qa2 {[%emt 0:01:14]} Rxc8 {[%emt 0:00:21]} 33. Rc1 {[%emt 0:00:13]} Rec7 {[%emt 0:00:47]} 34. Qe2 {[%emt 0:00:21]} b6 {[%emt 0:01:06]} 35. Qg4 {[%emt 0:00:47]} Rd8 {[%emt 0:00:45]} 36. Qg3 {[%emt 0:00:35]} Ra7 {[%emt 0:00:43]} 37. Bg5 {[%emt 0:00:24]} Bxg5 {[%emt 0:00:53]} 38. Qxg5 {[%emt 0:00:04]} Rdd7 {[%emt 0:00:49]} 39. Rc3 {[%emt 0:01:09]} h6 {[%emt 0:00:42]} 40. Qf5 {[%emt 0:00:20]} Kg8 {[%emt 0:01:17]} 41. Rg3 {[%emt 0:00:22]} Nd2 {[%emt 0:00:30]} 42. Qe6+ {[%emt 0:01:22]} Rf7 {[%emt 0:00:34]} 43. Qc8+ {[%emt 0:00:25]} Kh7 {[%emt 0:00:24]} 44. Qc1 {[%emt 0:00:13]} Nc4 {[%emt 0:00:23]} 45. Rg4 {[%emt 0:01:18]} Ra2 {[%emt 0:00:20]} 46. Rf4 {[%emt 0:00:47]} Rfa7 {[%emt 0:00:23]} 47. Qc3 {[%emt 0:00:23]} R7a3 {[%emt 0:00:36]} 48. Qb4 {[%emt 0:00:12]} Nd2 {[%emt 0:00:20]} 49. g3 {[%emt 0:01:35]} Nf3+ {[%emt 0:00:11]} 50. Kg2 {[%emt 0:00:48]} Ra1 {[%emt 0:00:13]} 51. Rxf3 {[%emt 0:00:10]} Rxf3 {[%emt 0:00:22]} 52. Qd2 {[%emt 0:00:15]} Ra8 {[%emt 0:00:26]} 53. Qe2 {[%emt 0:00:08]} Raf8 {[%emt 0:00:16]} 54. g4 {[%emt 0:00:16]} Rxf2+ {[%emt 0:00:25]} 55. Qxf2 {[%emt 0:00:03]} Rxf2+ {[%emt 0:00:04]} 56. Kxf2 {[%emt 0:00:02]} Kg6 {[%emt 0:00:11]} 57. h4 {[%emt 0:00:04]} h5 {[%emt 0:00:16]} 58. Kg3 {[%emt 0:00:17]} hxg4 {[%emt 0:00:09]} 59. Kxg4 {[%emt 0:00:03]} e3 {[%emt 0:00:17]} 60. Kf3 {[%emt 0:00:03]} Kh5 {[%emt 0:00:06]} 61. Kxe3 {[%emt 0:00:02]} Kxh4 {[%emt 0:00:03]} 62. Kf4 {[%emt 0:00:01]} g5+ {[%emt 0:00:08]} 63. Ke5 {[%emt 0:00:03]} g4 {[%emt 0:00:03]} 64. Kxd5 {[%emt 0:00:02]} g3 {[%emt 0:00:03]} 65. Kc6 {[%emt 0:00:01]} g2 {[%emt 0:00:03]} 66. Kxb6 {[%emt 0:00:02]} g1=Q {[%emt 0:00:05]} 67. Kc5 {[%emt 0:00:04]} Qc1+ {[%emt 0:00:07]} 68. Kd6 {[%emt 0:00:06]} Qc4 {[%emt 0:00:10]} 69. b6 {[%emt 0:00:08]} Qxd4+ {[%emt 0:00:08]} 70. Kc7 {[%emt 0:00:02]} Qe5+ {[%emt 0:00:27]} 71. Kb7 {[%emt 0:00:24]} Kg5 {[%emt 0:00:18]} 72. Kc6 {[%emt 0:00:15]} Qb8 {[%emt 0:00:07]} 73. b7 {[%emt 0:00:04]} Kf6 {[%emt 0:00:05]} 74. Kb6 {[%emt 0:00:03]} Ke7 {[%emt 0:00:04]} 75. Kc6 {[%emt 0:00:02]} Ke6 {[%emt 0:00:13]} 76. Kb6 {[%emt 0:00:04]} Kd6 {[%emt 0:00:04]} 1-0

[Event "African Online-ch Women 2021"]
[Site "Online"]
[Date "2021.02.01"]
[Round "6.5"]
[White "Rodriguez Guevara, Celia M."]
[Black "Shah, Riya"]
[Result "0-1"]
[ECO "C50"]
[WhiteElo "1849"]
[BlackElo "1559"]
[Annotator "NA RC"]
[PlyCount "152"]
[EventDate "2021.02.01"]
[EventType "swiss"]
[EventCountry "NET"]
[SourceTitle "playchess.com"]
[Source "ChessBase"]
[SourceQuality "1"]
[TimeControl "1500+10"]

1. e4 {[%emt 0:00:00]} e5 {[%emt 0:00:03]} 2. Nf3 {[%emt 0:00:05]} Nc6 {[%emt 0:00:02]} 3. Bc4 {[%emt 0:00:06]} Nd4 {[%emt 0:00:03]} 4. O-O {[%emt 0:01:04]} Nxf3+ {[%emt 0:00:59]} 5. Qxf3 {[%emt 0:00:08]} Nf6 {[%emt 0:00:35]} 6. h3 {[%emt 0:00:44]} Be7 {[%emt 0:00:52]} 7. d3 {[%emt 0:01:50]} d6 {[%emt 0:00:33]} 8. Qg3 {[%emt 0:01:09]} Nh5 {[%emt 0:02:57]} 9. Qf3 {[%emt 0:00:24]} Nf6 {[%emt 0:00:03]} 10. Nc3 {[%emt 0:00:04]} Be6 {[%emt 0:00:20]} 11. Bb3 {[%emt 0:00:10]} c6 {[%emt 0:00:26]} 12. Re1 {[%emt 0:00:20]} Qd7 {[%emt 0:00:43]} 13. Be3 {[%emt 0:00:39]} d5 {[%emt 0:02:32]} 14. exd5 {[%emt 0:00:19]} Nxd5 {[%emt 0:00:20]} 15. Bd2 {[%emt 0:04:01]} Bf6 {[%emt 0:01:20]} 16. Ne4 {[%emt 0:00:42]} b6 {[%emt 0:02:15]} 17. c4 {[%emt 0:04:11]} Ne7 {[%emt 0:03:06]} 18. Nxf6+ {[%emt 0:02:41]} gxf6 {[%emt 0:00:04]} 19. Qxf6 {[%emt 0:00:02]} Rg8 {[%emt 0:00:09]} 20. Kh2 {[%emt 0:00:08]} O-O-O {[%emt 0:02:46]} 21. Qxe5 {[%emt 0:02:16]} Ng6 {[%emt 0:02:35]} 22. Qg3 {[%emt 0:02:00]} Qxd3 {[%emt 0:00:18]} 23. Qxd3 {[%emt 0:02:10]} Rxd3 {[%emt 0:00:06]} 24. Rad1 {[%emt 0:00:12]} Nh4 {[%emt 0:01:12]} 25. Be3 {[%emt 0:03:07]} Rxd1 {[%emt 0:01:22]} 26. Bxd1 {[%emt 0:00:26]} Rxg2+ {[%emt 0:00:55]} 27. Kh1 {[%emt 0:00:03]} Bxc4 {[%emt 0:00:35]} 28. Bd4 {[%emt 0:00:24]} Bd5 {[%emt 0:00:30]} 29. f3 {[%emt 0:00:05]} Rd2 {[%emt 0:00:51]} 30. Bf6 {[%emt 0:00:03]} Nxf3 {[%emt 0:00:19]} 31. Re8+ {[%emt 0:00:05]} Kd7 {[%emt 0:00:28]} 32. Re7+ {[%emt 0:00:01]} Kc8 {[%emt 0:00:05]} 33. Bxf3 {[%emt 0:00:04]} Bxf3+ {[%emt 0:00:03]} 34. Kg1 {[%emt 0:00:01]} Bd5 {[%emt 0:00:10]} 35. a3 {[%emt 0:00:03]} Rd3 {[%emt 0:00:03]} 36. Rxa7 {[%emt 0:00:04]} Rxh3 {[%emt 0:00:08]} 37. Ra8+ {[%emt 0:00:05]} Kb7 {[%emt 0:00:03]} 38. Re8 {[%emt 0:00:04]} Rg3+ {[%emt 0:00:08]} 39. Kf2 {[%emt 0:00:05]} Rg6 {[%emt 0:00:01]} 40. Re7+ {[%emt 0:00:02]} Ka6 {[%emt 0:00:03]} 41. Be5 {[%emt 0:00:02]} Re6 {[%emt 0:00:03]} 42. Rxe6 {[%emt 0:00:04]} Bxe6 {[%emt 0:00:01]} 43. Kg3 {[%emt 0:00:02]} Kb5 {[%emt 0:00:02]} 44. Kh4 {[%emt 0:00:03]} Bf5 {[%emt 0:00:02]} 45. Kg5 {[%emt 0:00:02]} Bg6 {[%emt 0:00:01]} 46. Kf4 {[%emt 0:00:04]} Kc4 {[%emt 0:00:02]} 47. Bf6 {[%emt 0:00:02]} b5 {[%emt 0:00:02]} 48. Ke3 {[%emt 0:00:04]} c5 {[%emt 0:00:02]} 49. Bg5 {[%emt 0:00:05]} b4 {[%emt 0:00:01]} 50. axb4 {[%emt 0:00:05]} cxb4 {[%emt 0:00:03]} 51. Kd2 {[%emt 0:00:04]} Kb3 {[%emt 0:00:03]} 52. Kc1 {[%emt 0:00:06]} Kc4 {[%emt 0:00:03]} 53. Kd2 {[%emt 0:00:04]} b3 {[%emt 0:00:01]} 54. Bh6 {[%emt 0:00:07]} Kd5 {[%emt 0:00:02]} 55. Bg7 {[%emt 0:00:03]} Ke4 {[%emt 0:00:02]} 56. Kc3 {[%emt 0:00:05]} f5 {[%emt 0:00:02]} 57. Kxb3 {[%emt 0:00:03]} f4 {[%emt 0:00:02]} 58. Kc3 {[%emt 0:00:01]} f3 {[%emt 0:00:05]} 59. Bd4 {[%emt 0:00:05]} Bf7 {[%emt 0:00:02]} 60. b4 {[%emt 0:00:04]} Be8 {[%emt 0:00:02]} 61. Kc4 {[%emt 0:00:06]} h5 {[%emt 0:00:02]} 62. Bf2 {[%emt 0:00:02]} Kf4 {[%emt 0:00:03]} 63. b5 {[%emt 0:00:02]} Bxb5+ {[%emt 0:00:02]} 64. Kxb5 {[%emt 0:00:02]} Kg4 {[%emt 0:00:01]} 65. Kc4 {[%emt 0:00:02]} h4 {[%emt 0:00:02]} 66. Bxh4 {[%emt 0:00:17]} Kxh4 {[%emt 0:00:02]} 67. Kd3 {[%emt 0:00:03]} Kg3 {[%emt 0:00:01]} 68. Ke3 {[%emt 0:00:05]} Kg2 {[%emt 0:00:02]} 69. Kd2 {[%emt 0:00:41]} f2 {[%emt 0:00:02]} 70. Ke3 {[%emt 0:00:03]} f1=Q {[%emt 0:00:03]} 71. Kd2 {[%emt 0:00:02]} Kf3 {[%emt 0:00:03]} 72. Kc3 {[%emt 0:00:02]} Ke3 {[%emt 0:00:02]} 73. Kc2 {[%emt 0:00:02]} Qd3+ {[%emt 0:00:05]} 74. Kb2 {[%emt 0:00:03]} Kd4 {[%emt 0:00:04]} 75. Kc1 {[%emt 0:00:02]} Qe2 {[%emt 0:00:01]} 76. Kb1 {[%emt 0:00:02]} Kc3 {[%emt 0:00:03]} 0-1

[Event "African Online-ch Women 2021"]
[Site "Online"]
[Date "2021.02.01"]
[Round "6.7"]
[White "Joao, Delfina"]
[Black "Miladi, Amen"]
[Result "0-1"]
[ECO "C00"]
[WhiteElo "1727"]
[BlackElo "1802"]
[Annotator "NA RC"]
[PlyCount "88"]
[EventDate "2021.02.01"]
[EventType "swiss"]
[EventCountry "NET"]
[SourceTitle "playchess.com"]
[Source "ChessBase"]
[SourceQuality "1"]
[TimeControl "1500+10"]

1. e4 {[%emt 0:00:00]} c5 {[%emt 0:00:03]} 2. f4 {[%emt 0:00:06]} e6 {[%emt 0:00:08]} 3. Nf3 {[%emt 0:00:18]} d5 {[%emt 0:00:08]} 4. e5 {[%emt 0:00:46]} a6 {[%emt 0:00:11]} 5. c3 {[%emt 0:00:20]} Nc6 {[%emt 0:00:04]} 6. d4 {[%emt 0:00:05]} b5 {[%emt 0:00:19]} 7. Be3 {[%emt 0:00:15]} cxd4 {[%emt 0:00:47]} 8. cxd4 {[%emt 0:00:09]} Bb7 {[%emt 0:00:11]} 9. g3 {[%emt 0:00:24]} Nge7 {[%emt 0:00:14]} 10. Bg2 {[%emt 0:00:11]} Nf5 {[%emt 0:00:08]} 11. Bf2 {[%emt 0:00:05]} h5 {[%emt 0:01:10]} 12. Nc3 {[%emt 0:00:56]} Be7 {[%emt 0:01:07]} 13. Qd2 {[%emt 0:01:56]} Na5 {[%emt 0:00:47]} 14. Qd3 {[%emt 0:04:03]} Nc4 {[%emt 0:02:08]} 15. b3 {[%emt 0:00:40]} Na5 {[%emt 0:00:45]} 16. h4 {[%emt 0:01:34]} Rc8 {[%emt 0:01:08]} 17. O-O {[%emt 0:00:16]} Nc6 {[%emt 0:01:44]} 18. Rac1 {[%emt 0:01:00]} Ba3 {[%emt 0:01:03]} 19. Rb1 {[%emt 0:00:22]} Nb4 {[%emt 0:00:43]} 20. Qd2 {[%emt 0:00:23]} Qc7 {[%emt 0:00:24]} 21. Ne2 {[%emt 0:10:03]} Qc2 {[%emt 0:00:38]} 22. Be1 {[%emt 0:00:54]} Qxd2 {[%emt 0:00:57]} 23. Bxd2 {[%emt 0:00:08]} Nc2 {[%emt 0:01:06]} 24. Bc1 {[%emt 0:00:35]} Bb4 {[%emt 0:01:16]} 25. Rd1 {[%emt 0:00:26]} Nce3 {[%emt 0:01:00]} 26. Bxe3 {[%emt 0:00:31]} Nxe3 {[%emt 0:00:04]} 27. Rdc1 {[%emt 0:00:04]} O-O {[%emt 0:00:16]} 28. Kf2 {[%emt 0:00:04]} Nxg2 {[%emt 0:00:12]} 29. Kxg2 {[%emt 0:00:02]} Ba3 {[%emt 0:00:25]} 30. Rd1 {[%emt 0:00:52]} Rc2 {[%emt 0:00:22]} 31. Rd2 {[%emt 0:00:36]} Rxd2 {[%emt 0:00:11]} 32. Nxd2 {[%emt 0:00:04]} Rc8 {[%emt 0:00:03]} 33. Kf2 {[%emt 0:00:57]} Rc2 {[%emt 0:00:08]} 34. Ke3 {[%emt 0:00:06]} Bb4 {[%emt 0:00:46]} 35. Rd1 {[%emt 0:00:33]} Rxa2 {[%emt 0:01:19]} 36. Nc1 {[%emt 0:00:55]} Rc2 {[%emt 0:00:19]} 37. Ke2 {[%emt 0:00:16]} Bxd2 {[%emt 0:00:08]} 38. Rxd2 {[%emt 0:00:08]} Rxc1 {[%emt 0:00:02]} 39. Kd3 {[%emt 0:00:06]} Rg1 {[%emt 0:00:05]} 40. Re2 {[%emt 0:00:07]} Rxg3+ {[%emt 0:00:02]} 41. Re3 {[%emt 0:00:15]} Rg4 {[%emt 0:00:02]} 42. Re2 {[%emt 0:00:15]} Rxh4 {[%emt 0:00:03]} 43. Rc2 {[%emt 0:00:03]} Rh3+ {[%emt 0:00:13]} 44. Kd2 {[%emt 0:00:08]} Rh2+ {[%emt 0:00:01]} 0-1

[Event "African Online-ch Women 2021"]
[Site "Online"]
[Date "2021.02.01"]
[Round "6.8"]
[White "Caxita, Esperanca"]
[Black "Maingi, Sasha"]
[Result "1-0"]
[ECO "B13"]
[WhiteElo "1882"]
[BlackElo "1599"]
[Annotator "NA RC"]
[PlyCount "101"]
[EventDate "2021.02.01"]
[EventType "swiss"]
[EventCountry "NET"]
[SourceTitle "playchess.com"]
[Source "ChessBase"]
[SourceQuality "1"]
[TimeControl "1500+10"]

1. e4 {[%emt 0:00:00]} c6 {[%emt 0:00:07]} 2. d4 {[%emt 0:00:05]} d5 {[%emt 0:00:03]} 3. exd5 {[%emt 0:00:02]} cxd5 {[%emt 0:00:05]} 4. Bd3 {[%emt 0:00:03]} Nf6 {[%emt 0:00:07]} 5. Nf3 {[%emt 0:00:03]} Bg4 {[%emt 0:00:07]} 6. c3 {[%emt 0:00:05]} e6 {[%emt 0:00:42]} 7. Qa4+ {[%emt 0:00:50]} Nbd7 {[%emt 0:01:53]} 8. Ne5 {[%emt 0:00:09]} Bh5 {[%emt 0:01:27]} 9. Bg5 {[%emt 0:00:11]} a6 {[%emt 0:01:12]} 10. Na3 {[%emt 0:06:27]} b5 {[%emt 0:07:35]} 11. Qb3 {[%emt 0:00:10]} Bd6 {[%emt 0:01:22]} 12. Nxd7 {[%emt 0:02:10]} Qxd7 {[%emt 0:00:19]} 13. Nxb5 {[%emt 0:01:43]} Be7 {[%emt 0:02:24]} 14. Na3 {[%emt 0:00:26]} O-O {[%emt 0:00:07]} 15. Qc2 {[%emt 0:01:01]} Bg6 {[%emt 0:00:22]} 16. Bxf6 {[%emt 0:01:48]} Bxf6 {[%emt 0:00:15]} 17. O-O {[%emt 0:00:07]} Rfb8 {[%emt 0:00:08]} 18. Bxg6 {[%emt 0:00:28]} hxg6 {[%emt 0:00:07]} 19. Qd2 {[%emt 0:00:36]} Rb6 {[%emt 0:00:23]} 20. Rab1 {[%emt 0:00:21]} Rab8 {[%emt 0:00:08]} 21. b3 {[%emt 0:01:00]} Rc6 {[%emt 0:00:59]} 22. Rbc1 {[%emt 0:00:26]} Rbc8 {[%emt 0:00:47]} 23. Nb1 {[%emt 0:00:57]} Qc7 {[%emt 0:01:09]} 24. Rfe1 {[%emt 0:00:28]} Qa5 {[%emt 0:00:53]} 25. g3 {[%emt 0:00:54]} Qb6 {[%emt 0:01:27]} 26. Kg2 {[%emt 0:01:02]} a5 {[%emt 0:00:42]} 27. h3 {[%emt 0:00:30]} Qa7 {[%emt 0:00:44]} 28. Red1 {[%emt 0:00:53]} Qa6 {[%emt 0:00:22]} 29. Qd3 {[%emt 0:00:18]} Qxd3 {[%emt 0:01:04]} 30. Rxd3 {[%emt 0:00:19]} Bg5 {[%emt 0:00:13]} 31. f4 {[%emt 0:00:15]} Be7 {[%emt 0:00:04]} 32. Rf1 {[%emt 0:01:12]} Bd6 {[%emt 0:01:03]} 33. a4 {[%emt 0:00:22]} Rb8 {[%emt 0:00:15]} 34. Nd2 {[%emt 0:00:04]} Ba3 {[%emt 0:00:30]} 35. Rb1 {[%emt 0:00:13]} Rbc8 {[%emt 0:00:05]} 36. c4 {[%emt 0:00:07]} dxc4 {[%emt 0:00:10]} 37. Nxc4 {[%emt 0:00:13]} Bb4 {[%emt 0:00:04]} 38. Rbd1 {[%emt 0:00:12]} Rd8 {[%emt 0:00:14]} 39. d5 {[%emt 0:00:17]} exd5 {[%emt 0:00:05]} 40. Rxd5 {[%emt 0:00:04]} Rxd5 {[%emt 0:00:12]} 41. Rxd5 {[%emt 0:00:04]} Ra6 {[%emt 0:00:06]} 42. Ne5 {[%emt 0:00:17]} Bc3 {[%emt 0:00:37]} 43. Rd8+ {[%emt 0:00:19]} Kh7 {[%emt 0:00:10]} 44. Nxf7 {[%emt 0:00:05]} g5 {[%emt 0:00:50]} 45. Nxg5+ {[%emt 0:00:36]} Kg6 {[%emt 0:00:06]} 46. Ne4 {[%emt 0:00:05]} Bb4 {[%emt 0:00:05]} 47. g4 {[%emt 0:00:23]} Rc6 {[%emt 0:00:32]} 48. h4 {[%emt 0:00:54]} Rc5 {[%emt 0:00:29]} 49. Nxc5 {[%emt 0:00:08]} Bxc5 {[%emt 0:00:09]} 50. h5+ {[%emt 0:00:24]} Kh6 {[%emt 0:00:11]} 51. Rh8# {[%emt 0:00:10]} 1-0